[Event "*** SCC Grand Prix: Titled Tuesday Blitz"]
[Site "Chess.com"]
[Date "2020.06.02"]
[Round "7"]
[White "vasblesk"]
[Black "freshfoodcompany"]
[Result "1-0"]
[WhiteElo "2408"]
[BlackElo "2209"]
[TimeControl "180+1"]
[EndTime "11:21:52 PDT"]
[Termination "vasblesk won by checkmate"]

1. e4 {[%clk 0:02:59.2]} 1... c5 {[%clk 0:02:59.7]} 2. Nf3 {[%clk 0:02:57.9]}
2... Nc6 {[%clk 0:02:59.3]} 3. Bb5 {[%clk 0:02:57]} 3... g6 {[%clk 0:02:58.8]}
4. Bxc6 {[%clk 0:02:55.8]} 4... dxc6 {[%clk 0:02:58]} 5. d3 {[%clk 0:02:55.4]}
5... Bg7 {[%clk 0:02:57.6]} 6. O-O {[%clk 0:02:53.8]} 6... Qc7 {[%clk
0:02:56.2]} 7. h3 {[%clk 0:02:51.7]} 7... e5 {[%clk 0:02:53.5]} 8. Be3 {[%clk
0:02:50.5]} 8... b6 {[%clk 0:02:53.1]} 9. a4 {[%clk 0:02:50.5]} 9... a5 {[%clk
0:02:53]} 10. Nbd2 {[%clk 0:02:50.4]} 10... Ne7 {[%clk 0:02:51]} 11. Nc4 {[%clk
0:02:49.8]} 11... Be6 {[%clk 0:02:49.3]} 12. b3 {[%clk 0:02:49.4]} 12... O-O
{[%clk 0:02:48.1]} 13. Ng5 {[%clk 0:02:24.2]} 13... Bd7 {[%clk 0:02:45.6]} 14.
f4 {[%clk 0:02:19.2]} 14... f6 {[%clk 0:02:40]} 15. Nf3 {[%clk 0:02:07.9]} 15...
exf4 {[%clk 0:02:39.1]} 16. Bd2 {[%clk 0:02:07.8]} 16... Be6 {[%clk 0:02:33.5]}
17. Nh2 {[%clk 0:01:57.7]} 17... g5 {[%clk 0:02:29.8]} 18. Qh5 {[%clk 0:01:51]}
18... Bf7 {[%clk 0:02:23]} 19. Qf3 {[%clk 0:01:48.1]} 19... f5 {[%clk
0:02:17.2]} 20. e5 {[%clk 0:01:43.4]} 20... Bxc4 {[%clk 0:02:12.2]} 21. bxc4
{[%clk 0:01:44.3]} 21... Bxe5 {[%clk 0:02:10.4]} 22. Rae1 {[%clk 0:01:44.6]}
22... Bd4+ {[%clk 0:02:07.9]} 23. Kh1 {[%clk 0:01:42.9]} 23... Ng6 {[%clk
0:02:03.6]} 24. Qh5 {[%clk 0:01:26.9]} 24... Bf6 {[%clk 0:01:59.2]} 25. Nf3
{[%clk 0:01:16]} 25... Qd8 {[%clk 0:01:51.3]} 26. Re6 {[%clk 0:01:10.4]} 26...
Qd7 {[%clk 0:01:41.6]} 27. Rfe1 {[%clk 0:01:01.8]} 27... Rae8 {[%clk 0:01:31.2]}
28. Rxe8 {[%clk 0:01:00.6]} 28... Rxe8 {[%clk 0:01:30.5]} 29. Rxe8+ {[%clk
0:01:01.5]} 29... Qxe8 {[%clk 0:01:30.4]} 30. Nxg5 {[%clk 0:01:01.2]} 30... Qe7
{[%clk 0:01:26]} 31. Nf3 {[%clk 0:00:57.9]} 31... Qe6 {[%clk 0:01:22.3]} 32. Ng5
{[%clk 0:00:41.5]} 32... Qe7 {[%clk 0:01:18]} 33. Nf3 {[%clk 0:00:40.3]} 33...
Qe6 {[%clk 0:01:09.8]} 34. Qh6 {[%clk 0:00:39.2]} 34... Bg7 {[%clk 0:01:07.5]}
35. Qxh7+ {[%clk 0:00:31.5]} 35... Kxh7 {[%clk 0:01:03.6]} 36. Ng5+ {[%clk
0:00:31.3]} 36... Kg8 {[%clk 0:01:01.5]} 37. Nxe6 {[%clk 0:00:32.2]} 37... Be5
{[%clk 0:01:00.8]} 38. Kg1 {[%clk 0:00:15.9]} 38... Kf7 {[%clk 0:00:59.7]} 39.
Ng5+ {[%clk 0:00:16.2]} 39... Kf6 {[%clk 0:00:58.5]} 40. Nf3 {[%clk 0:00:17.1]}
40... Bc7 {[%clk 0:00:56.5]} 41. Kf2 {[%clk 0:00:16.6]} 41... Bd6 {[%clk
0:00:52.7]} 42. Bc3+ {[%clk 0:00:16.7]} 42... Ke7 {[%clk 0:00:49.3]} 43. Ng5
{[%clk 0:00:15.8]} 43... Nh4 {[%clk 0:00:46.5]} 44. Nf3 {[%clk 0:00:14.2]} 44...
Ng6 {[%clk 0:00:43.4]} 45. h4 {[%clk 0:00:10.5]} 45... Ke6 {[%clk 0:00:38.1]}
46. h5 {[%clk 0:00:10.3]} 46... Nf8 {[%clk 0:00:27.8]} 47. Ng5+ {[%clk 0:00:10]}
47... Kd7 {[%clk 0:00:24.4]} 48. h6 {[%clk 0:00:10.3]} 48... Be7 {[%clk
0:00:23]} 49. h7 {[%clk 0:00:09.6]} 49... Ng6 {[%clk 0:00:20.9]} 50. Nf7 {[%clk
0:00:09]} 50... Bh4+ {[%clk 0:00:20.5]} 51. Kf3 {[%clk 0:00:08.3]} 51... b5
{[%clk 0:00:20.4]} 52. cxb5 {[%clk 0:00:05.9]} 52... cxb5 {[%clk 0:00:20.3]} 53.
axb5 {[%clk 0:00:06.8]} 53... a4 {[%clk 0:00:20.4]} 54. h8=Q {[%clk 0:00:06.6]}
54... Nxh8 {[%clk 0:00:19.6]} 55. Nxh8 {[%clk 0:00:07.5]} 55... a3 {[%clk
0:00:18.7]} 56. Ng6 {[%clk 0:00:07.4]} 56... Bd8 {[%clk 0:00:17.2]} 57. Nxf4
{[%clk 0:00:07.1]} 57... a2 {[%clk 0:00:16.3]} 58. Ne2 {[%clk 0:00:07.1]} 58...
Ba5 {[%clk 0:00:15.2]} 59. Ba1 {[%clk 0:00:05.7]} 59... Kc7 {[%clk 0:00:14.4]}
60. Nc1 {[%clk 0:00:05.1]} 60... Kb6 {[%clk 0:00:13.4]} 61. c4 {[%clk
0:00:05.2]} 61... Bb4 {[%clk 0:00:13]} 62. Nxa2 {[%clk 0:00:05.2]} 62... Ba3
{[%clk 0:00:13.6]} 63. Bc3 {[%clk 0:00:05.2]} 63... Kb7 {[%clk 0:00:12.4]} 64.
Kf4 {[%clk 0:00:05.6]} 64... Kb6 {[%clk 0:00:12.4]} 65. Kxf5 {[%clk 0:00:06.2]}
65... Kb7 {[%clk 0:00:12.5]} 66. g4 {[%clk 0:00:06.8]} 66... Kb6 {[%clk
0:00:12.9]} 67. g5 {[%clk 0:00:07.4]} 67... Kb7 {[%clk 0:00:12.4]} 68. g6 {[%clk
0:00:07.8]} 68... Kb6 {[%clk 0:00:11.8]} 69. g7 {[%clk 0:00:07.9]} 69... Kb7
{[%clk 0:00:11.2]} 70. g8=Q {[%clk 0:00:08]} 70... Kb6 {[%clk 0:00:11.1]} 71.
Qb8# {[%clk 0:00:07.8]} 1-0

[Event "*** SCC Grand Prix: Titled Tuesday Blitz"]
[Site "Chess.com"]
[Date "2020.06.02"]
[Round "7"]
[White "doons21"]
[Black "FightingChess"]
[Result "0-1"]
[WhiteElo "2478"]
[BlackElo "2381"]
[TimeControl "180+1"]
[EndTime "11:21:57 PDT"]
[Termination "FightingChess won on time"]

1. e4 {[%clk 0:03:00.9]} 1... e6 {[%clk 0:03:00.2]} 2. d3 {[%clk 0:03:00.7]}
2... d5 {[%clk 0:02:56.7]} 3. Nd2 {[%clk 0:03:00.8]} 3... Nf6 {[%clk 0:02:56.7]}
4. Ngf3 {[%clk 0:03:00.4]} 4... Bc5 {[%clk 0:02:57]} 5. Be2 {[%clk 0:02:44.9]}
5... dxe4 {[%clk 0:02:54.2]} 6. dxe4 {[%clk 0:02:43.7]} 6... e5 {[%clk
0:02:54.2]} 7. O-O {[%clk 0:02:42.8]} 7... Qe7 {[%clk 0:02:47.8]} 8. c3 {[%clk
0:02:39.5]} 8... a5 {[%clk 0:02:47.4]} 9. a4 {[%clk 0:02:37.9]} 9... Bg4 {[%clk
0:02:42.9]} 10. Qc2 {[%clk 0:02:37.9]} 10... Nbd7 {[%clk 0:02:41.2]} 11. Nc4
{[%clk 0:02:37.2]} 11... O-O {[%clk 0:02:36.6]} 12. Bg5 {[%clk 0:02:33.5]} 12...
Rfd8 {[%clk 0:02:13.1]} 13. Rad1 {[%clk 0:02:12.5]} 13... Bxf3 {[%clk
0:01:45.8]} 14. Bxf3 {[%clk 0:02:08.9]} 14... Nf8 {[%clk 0:01:46]} 15. Ne3
{[%clk 0:01:58.8]} 15... Bxe3 {[%clk 0:01:22.7]} 16. Bxe3 {[%clk 0:01:57.7]}
16... Ne6 {[%clk 0:01:22.7]} 17. g3 {[%clk 0:01:57.9]} 17... Rxd1 {[%clk
0:01:16.7]} 18. Rxd1 {[%clk 0:01:55.6]} 18... Rd8 {[%clk 0:01:17.1]} 19. Kg2
{[%clk 0:01:36.1]} 19... Rxd1 {[%clk 0:01:10.7]} 20. Bxd1 {[%clk 0:01:35.6]}
20... Qd6 {[%clk 0:01:07]} 21. f3 {[%clk 0:01:31.7]} 21... Nd7 {[%clk 0:01:07]}
22. Qd2 {[%clk 0:01:09.2]} 22... Qxd2+ {[%clk 0:01:04.1]} 23. Bxd2 {[%clk
0:01:10.1]} 23... Kf8 {[%clk 0:01:00.3]} 24. Kf2 {[%clk 0:01:05.5]} 24... Ke7
{[%clk 0:00:59.3]} 25. Bc2 {[%clk 0:00:58.4]} 25... c5 {[%clk 0:00:47.6]} 26.
Be3 {[%clk 0:00:53.4]} 26... Kd6 {[%clk 0:00:47.1]} 27. Bd3 {[%clk 0:00:51.7]}
27... Nb8 {[%clk 0:00:45.9]} 28. Bb5 {[%clk 0:00:48.6]} 28... Nc6 {[%clk
0:00:44.9]} 29. f4 {[%clk 0:00:48.5]} 29... f6 {[%clk 0:00:44.1]} 30. h4 {[%clk
0:00:46.8]} 30... h6 {[%clk 0:00:32.3]} 31. h5 {[%clk 0:00:46]} 31... Nc7 {[%clk
0:00:23.3]} 32. Bc4 {[%clk 0:00:44]} 32... Ne6 {[%clk 0:00:23.4]} 33. Kf3 {[%clk
0:00:43.9]} 33... Ncd8 {[%clk 0:00:21.3]} 34. Kg4 {[%clk 0:00:41.9]} 34... Ke7
{[%clk 0:00:18.8]} 35. Bd5 {[%clk 0:00:40]} 35... b6 {[%clk 0:00:17.9]} 36. Kf3
{[%clk 0:00:37.2]} 36... Nf7 {[%clk 0:00:15.3]} 37. Ke2 {[%clk 0:00:34.3]} 37...
Nd6 {[%clk 0:00:11.4]} 38. Kd3 {[%clk 0:00:33.1]} 38... Nc7 {[%clk 0:00:11.7]}
39. Bc6 {[%clk 0:00:29.7]} 39... Ne6 {[%clk 0:00:11.6]} 40. b4 {[%clk
0:00:26.3]} 40... cxb4 {[%clk 0:00:11.2]} 41. cxb4 {[%clk 0:00:26.6]} 41... axb4
{[%clk 0:00:09]} 42. f5 {[%clk 0:00:26.6]} 42... Nc5+ {[%clk 0:00:08.5]} 43. Kc2
{[%clk 0:00:16.2]} 43... Ndxe4 {[%clk 0:00:07.6]} 44. g4 {[%clk 0:00:12.5]}
44... Kd6 {[%clk 0:00:07.5]} 45. Bb5 {[%clk 0:00:11.9]} 45... Kc7 {[%clk
0:00:06.1]} 46. Kb2 {[%clk 0:00:11.5]} 46... Nd6 {[%clk 0:00:06.4]} 47. Be2
{[%clk 0:00:10.1]} 47... Ndb7 {[%clk 0:00:04.8]} 48. Bd1 {[%clk 0:00:08.3]}
48... Na5 {[%clk 0:00:05.3]} 49. Kc1 {[%clk 0:00:07]} 49... Nc4 {[%clk
0:00:05.6]} 50. Bf2 {[%clk 0:00:06.9]} 50... b3 {[%clk 0:00:06.1]} 51. Be2
{[%clk 0:00:05.8]} 51... b2+ {[%clk 0:00:06.1]} 52. Kb1 {[%clk 0:00:06.2]} 52...
Nd2+ {[%clk 0:00:04.8]} 53. Kxb2 {[%clk 0:00:06.3]} 53... Nde4 {[%clk 0:00:05]}
54. Be3 {[%clk 0:00:05.3]} 54... Nxa4+ {[%clk 0:00:05.2]} 55. Kb3 {[%clk
0:00:05.8]} 55... Nac5+ {[%clk 0:00:06.1]} 56. Kc4 {[%clk 0:00:06.7]} 56... Nd7
{[%clk 0:00:06.2]} 57. Kd5 {[%clk 0:00:07.6]} 57... Nc3+ {[%clk 0:00:06.2]} 58.
Ke6 {[%clk 0:00:07.5]} 58... Nxe2 {[%clk 0:00:07.1]} 59. Kf7 {[%clk 0:00:08.2]}
59... b5 {[%clk 0:00:07.7]} 60. Kxg7 {[%clk 0:00:08.5]} 60... b4 {[%clk
0:00:08.2]} 61. Kxh6 {[%clk 0:00:05.3]} 61... b3 {[%clk 0:00:08.7]} 62. Kg6
{[%clk 0:00:05.8]} 62... b2 {[%clk 0:00:09.2]} 63. h6 {[%clk 0:00:06.7]} 63...
b1=Q {[%clk 0:00:09.8]} 64. h7 {[%clk 0:00:07.6]} 64... Nf4+ {[%clk 0:00:09]}
65. Bxf4 {[%clk 0:00:06.7]} 65... exf4 {[%clk 0:00:09.9]} 66. h8=Q {[%clk
0:00:07.6]} 66... Qe4 {[%clk 0:00:10.1]} 67. Qg8 {[%clk 0:00:05.4]} 67... f3
{[%clk 0:00:09.4]} 68. Qb3 {[%clk 0:00:04.3]} 68... Qc6 {[%clk 0:00:07.3]} 69.
Qe3 {[%clk 0:00:03.6]} 69... Ne5+ {[%clk 0:00:07.4]} 70. Kh5 {[%clk 0:00:02.6]}
70... Qe8+ {[%clk 0:00:07.4]} 71. Kh4 {[%clk 0:00:02.4]} 71... Qh8+ {[%clk
0:00:05.6]} 72. Kg3 {[%clk 0:00:02.5]} 72... Qh1 {[%clk 0:00:05.5]} 73. Qc5+
{[%clk 0:00:02.4]} 73... Nc6 {[%clk 0:00:05.5]} 74. Qe3 {[%clk 0:00:02.3]} 74...
Qg2+ {[%clk 0:00:05.4]} 75. Kf4 {[%clk 0:00:02.7]} 75... f2 {[%clk 0:00:05.7]}
0-1

[Event "*** SCC Grand Prix: Titled Tuesday Blitz"]
[Site "Chess.com"]
[Date "2020.06.02"]
[Round "7"]
[White "51616516516"]
[Black "IMDT02"]
[Result "1/2-1/2"]
[WhiteElo "2377"]
[BlackElo "2492"]
[TimeControl "180+1"]
[EndTime "11:21:58 PDT"]
[Termination "Game drawn - insufficient material"]

1. d4 {[%clk 0:03:00.9]} 1... Nf6 {[%clk 0:02:59.2]} 2. c4 {[%clk 0:03:00.3]}
2... e6 {[%clk 0:02:53.6]} 3. Nc3 {[%clk 0:02:59.2]} 3... d5 {[%clk 0:02:52.6]}
4. cxd5 {[%clk 0:02:58.5]} 4... exd5 {[%clk 0:02:49.1]} 5. Bg5 {[%clk
0:02:55.2]} 5... c6 {[%clk 0:02:49]} 6. Qc2 {[%clk 0:02:54]} 6... Bd6 {[%clk
0:02:47.3]} 7. Bxf6 {[%clk 0:02:40.3]} 7... Qxf6 {[%clk 0:02:44.5]} 8. Nxd5
{[%clk 0:02:39.9]} 8... Qxd4 {[%clk 0:02:05.3]} 9. Rd1 {[%clk 0:02:27.2]} 9...
Bb4+ {[%clk 0:01:37.4]} 10. Nc3 {[%clk 0:02:26.7]} 10... Bxc3+ {[%clk
0:01:35.4]} 11. bxc3 {[%clk 0:02:27.6]} 11... Qf6 {[%clk 0:01:26.4]} 12. e3
{[%clk 0:02:15.5]} 12... O-O {[%clk 0:01:25.8]} 13. Nf3 {[%clk 0:02:08.3]} 13...
Bg4 {[%clk 0:01:13.3]} 14. Be2 {[%clk 0:02:05.6]} 14... Nd7 {[%clk 0:01:11]} 15.
O-O {[%clk 0:02:02.8]} 15... Nb6 {[%clk 0:01:11.2]} 16. c4 {[%clk 0:01:58.2]}
16... c5 {[%clk 0:01:01]} 17. a4 {[%clk 0:01:40.9]} 17... Rfd8 {[%clk
0:00:30.5]} 18. a5 {[%clk 0:01:38.7]} 18... Nd7 {[%clk 0:00:29.9]} 19. Qe4
{[%clk 0:01:11.5]} 19... Bxf3 {[%clk 0:00:29.4]} 20. Qxf3 {[%clk 0:01:05.4]}
20... Rab8 {[%clk 0:00:14.9]} 21. Qxf6 {[%clk 0:00:59.1]} 21... Nxf6 {[%clk
0:00:14.7]} 22. Bf3 {[%clk 0:00:59.6]} 22... b6 {[%clk 0:00:12.2]} 23. axb6
{[%clk 0:00:53.2]} 23... axb6 {[%clk 0:00:10.8]} 24. g3 {[%clk 0:00:52.3]} 24...
g6 {[%clk 0:00:10.6]} 25. h4 {[%clk 0:00:50.3]} 25... h5 {[%clk 0:00:08.9]} 26.
Kg2 {[%clk 0:00:43.5]} 26... Kf8 {[%clk 0:00:09.1]} 27. Bc6 {[%clk 0:00:29.8]}
27... Ke7 {[%clk 0:00:08.5]} 28. Rxd8 {[%clk 0:00:18.5]} 28... Kxd8 {[%clk
0:00:05.5]} 29. Rd1+ {[%clk 0:00:16]} 29... Kc7 {[%clk 0:00:05.8]} 30. Bf3
{[%clk 0:00:13.1]} 30... b5 {[%clk 0:00:03.8]} 31. cxb5 {[%clk 0:00:11.6]} 31...
Rxb5 {[%clk 0:00:04.7]} 32. Rc1 {[%clk 0:00:11.1]} 32... Kd6 {[%clk 0:00:04.3]}
33. Be2 {[%clk 0:00:10]} 33... Rb8 {[%clk 0:00:03.5]} 34. Bc4 {[%clk 0:00:10.4]}
34... Ke7 {[%clk 0:00:03]} 35. Rc2 {[%clk 0:00:04.7]} 35... Nd7 {[%clk
0:00:03.4]} 36. f4 {[%clk 0:00:03.2]} 36... Nf6 {[%clk 0:00:03]} 37. Bd3 {[%clk
0:00:02.9]} 37... Rd8 {[%clk 0:00:03]} 38. Be2 {[%clk 0:00:02.8]} 38... Nd7
{[%clk 0:00:03.3]} 39. Bf3 {[%clk 0:00:03]} 39... Rc8 {[%clk 0:00:03.7]} 40. e4
{[%clk 0:00:03.2]} 40... c4 {[%clk 0:00:04]} 41. e5 {[%clk 0:00:03.6]} 41... c3
{[%clk 0:00:04.3]} 42. Kf2 {[%clk 0:00:04.2]} 42... Nb6 {[%clk 0:00:03.8]} 43.
Ke2 {[%clk 0:00:04.2]} 43... Na4 {[%clk 0:00:03.6]} 44. Be4 {[%clk 0:00:03.8]}
44... Rc5 {[%clk 0:00:02.7]} 45. Kd3 {[%clk 0:00:03]} 45... Nb6 {[%clk
0:00:01.9]} 46. Rxc3 {[%clk 0:00:02.2]} 46... Rxc3+ {[%clk 0:00:02.4]} 47. Kxc3
{[%clk 0:00:03.1]} 47... Nd7 {[%clk 0:00:02.2]} 48. Kd4 {[%clk 0:00:02.7]} 48...
Nb6 {[%clk 0:00:02.7]} 49. Bd3 {[%clk 0:00:03.3]} 49... Nd7 {[%clk 0:00:02.8]}
50. Ke3 {[%clk 0:00:04.2]} 50... Nc5 {[%clk 0:00:03]} 51. Be4 {[%clk 0:00:04.9]}
51... Nb3 {[%clk 0:00:03.3]} 52. Bd3 {[%clk 0:00:04.6]} 52... Nc5 {[%clk
0:00:03.7]} 53. Be2 {[%clk 0:00:05.5]} 53... Ne6 {[%clk 0:00:03.8]} 54. Bf3
{[%clk 0:00:05.9]} 54... Ng7 {[%clk 0:00:04.4]} 55. Be4 {[%clk 0:00:06.2]} 55...
Ne6 {[%clk 0:00:04.6]} 56. Kf3 {[%clk 0:00:06.5]} 56... Nc5 {[%clk 0:00:05]} 57.
Bc2 {[%clk 0:00:05.9]} 57... Nd7 {[%clk 0:00:03.4]} 58. g4 {[%clk 0:00:06.1]}
58... hxg4+ {[%clk 0:00:03.2]} 59. Kxg4 {[%clk 0:00:07]} 59... Nf8 {[%clk
0:00:02.4]} 60. h5 {[%clk 0:00:06.9]} 60... gxh5+ {[%clk 0:00:02.8]} 61. Kxh5
{[%clk 0:00:07.8]} 61... Ne6 {[%clk 0:00:03.4]} 62. Kg4 {[%clk 0:00:08.4]} 62...
Nd4 {[%clk 0:00:03.7]} 63. Be4 {[%clk 0:00:08.9]} 63... Nb5 {[%clk 0:00:03.8]}
64. f5 {[%clk 0:00:08.4]} 64... Nc3 {[%clk 0:00:04.2]} 65. Kf4 {[%clk
0:00:08.1]} 65... f6 {[%clk 0:00:04.1]} 66. e6 {[%clk 0:00:06.8]} 66... Nb5
{[%clk 0:00:03.2]} 67. Bd5 {[%clk 0:00:06.3]} 67... Kd6 {[%clk 0:00:02.8]} 68.
Bc4 {[%clk 0:00:05.6]} 68... Nc7 {[%clk 0:00:02.9]} 69. Be2 {[%clk 0:00:05.5]}
69... Ke7 {[%clk 0:00:03.3]} 70. Bf3 {[%clk 0:00:04.4]} 70... Nxe6+ {[%clk
0:00:03.3]} 71. fxe6 {[%clk 0:00:03.8]} 71... Kxe6 {[%clk 0:00:04.2]} 72. Bg4+
{[%clk 0:00:03.6]} 72... f5 {[%clk 0:00:05.1]} 73. Bxf5+ {[%clk 0:00:03.7]}
1/2-1/2

[Event "*** SCC Grand Prix: Titled Tuesday Blitz"]
[Site "Chess.com"]
[Date "2020.06.02"]
[Round "7"]
[White "Terao90"]
[Black "Natalya_Buksa"]
[Result "1-0"]
[WhiteElo "2322"]
[BlackElo "2559"]
[TimeControl "180+1"]
[EndTime "11:22:07 PDT"]
[Termination "Terao90 won by resignation"]

1. e4 {[%clk 0:03:00.9]} 1... c5 {[%clk 0:02:59.8]} 2. Nf3 {[%clk 0:02:59.7]}
2... Nc6 {[%clk 0:03:00.2]} 3. d4 {[%clk 0:02:58.4]} 3... cxd4 {[%clk
0:03:01.1]} 4. Nxd4 {[%clk 0:02:59.1]} 4... Nf6 {[%clk 0:03:01.3]} 5. Nc3 {[%clk
0:02:58.9]} 5... e5 {[%clk 0:03:01.7]} 6. Ndb5 {[%clk 0:02:59.2]} 6... d6 {[%clk
0:03:01.9]} 7. Nd5 {[%clk 0:02:59.8]} 7... Nxd5 {[%clk 0:03:01.4]} 8. exd5
{[%clk 0:03:00.7]} 8... Nb8 {[%clk 0:03:01.9]} 9. c4 {[%clk 0:03:00.9]} 9... Be7
{[%clk 0:03:02]} 10. Be2 {[%clk 0:03:00.2]} 10... O-O {[%clk 0:03:02.5]} 11. O-O
{[%clk 0:02:57.9]} 11... Nd7 {[%clk 0:03:02.9]} 12. Be3 {[%clk 0:02:57.7]} 12...
f5 {[%clk 0:03:03]} 13. f3 {[%clk 0:02:54.4]} 13... f4 {[%clk 0:02:51.3]} 14.
Bf2 {[%clk 0:02:52.7]} 14... a6 {[%clk 0:02:51.7]} 15. Nc3 {[%clk 0:02:52.3]}
15... Nf6 {[%clk 0:02:49.5]} 16. b4 {[%clk 0:02:49.5]} 16... b6 {[%clk
0:02:43.4]} 17. Bd3 {[%clk 0:02:44.9]} 17... Rb8 {[%clk 0:02:41.9]} 18. Ne4
{[%clk 0:02:41.6]} 18... Nxe4 {[%clk 0:02:38.4]} 19. Bxe4 {[%clk 0:02:42.5]}
19... Qe8 {[%clk 0:02:37.4]} 20. Rc1 {[%clk 0:02:39.1]} 20... Bf5 {[%clk
0:02:36.1]} 21. Qd3 {[%clk 0:02:34.8]} 21... Bxe4 {[%clk 0:02:25.3]} 22. Qxe4
{[%clk 0:02:35.7]} 22... Qa4 {[%clk 0:02:24.7]} 23. Qb1 {[%clk 0:02:25.2]} 23...
a5 {[%clk 0:02:23.5]} 24. b5 {[%clk 0:01:41.4]} 24... Rfc8 {[%clk 0:02:20.3]}
25. Qb3 {[%clk 0:01:41.2]} 25... Qxb3 {[%clk 0:02:16.6]} 26. axb3 {[%clk
0:01:42.1]} 26... Bd8 {[%clk 0:02:16.7]} 27. Ra1 {[%clk 0:01:40]} 27... Ra8
{[%clk 0:02:12.4]} 28. Ra4 {[%clk 0:01:38.5]} 28... Rab8 {[%clk 0:02:06]} 29.
Re1 {[%clk 0:01:38.1]} 29... Kf7 {[%clk 0:02:05.5]} 30. Kf1 {[%clk 0:01:38.3]}
30... Ke8 {[%clk 0:02:05.7]} 31. Ke2 {[%clk 0:01:38.2]} 31... Kd7 {[%clk
0:02:06]} 32. Kd3 {[%clk 0:01:38.3]} 32... Bc7 {[%clk 0:02:01.8]} 33. Rea1
{[%clk 0:01:35.3]} 33... Re8 {[%clk 0:01:58.7]} 34. Ke4 {[%clk 0:01:34.5]} 34...
Rb7 {[%clk 0:01:56.2]} 35. b4 {[%clk 0:01:30.4]} 35... Ra8 {[%clk 0:01:27.1]}
36. bxa5 {[%clk 0:01:17.9]} 36... bxa5 {[%clk 0:01:26.9]} 37. Be1 {[%clk
0:01:14.3]} 37... Rba7 {[%clk 0:01:26.4]} 38. Bf2 {[%clk 0:01:13.5]} 38... Rb7
{[%clk 0:01:26.4]} 39. g3 {[%clk 0:01:10.6]} 39... fxg3 {[%clk 0:01:25.3]} 40.
hxg3 {[%clk 0:01:09.5]} 40... Bd8 {[%clk 0:01:25]} 41. Be3 {[%clk 0:01:07.6]}
41... Rc8 {[%clk 0:01:23.6]} 42. Bd2 {[%clk 0:01:04.3]} 42... Bb6 {[%clk
0:01:19.2]} 43. Rc1 {[%clk 0:00:47.3]} 43... h6 {[%clk 0:01:15.3]} 44. Rc2
{[%clk 0:00:40.4]} 44... Bd8 {[%clk 0:01:03.5]} 45. Kd3 {[%clk 0:00:36.6]} 45...
Ke8 {[%clk 0:00:46.4]} 46. Rca2 {[%clk 0:00:31]} 46... Rf7 {[%clk 0:00:43.6]}
47. f4 {[%clk 0:00:30.1]} 47... exf4 {[%clk 0:00:43.1]} 48. gxf4 {[%clk
0:00:31]} 48... h5 {[%clk 0:00:34.1]} 49. Be3 {[%clk 0:00:30.3]} 49... Rb8
{[%clk 0:00:32.3]} 50. Re2 {[%clk 0:00:08.2]} 50... Kd7 {[%clk 0:00:31.4]} 51.
Raa2 {[%clk 0:00:06.3]} 51... h4 {[%clk 0:00:31.4]} 52. Rg2 {[%clk 0:00:05.1]}
52... Bf6 {[%clk 0:00:29.1]} 53. Rxa5 {[%clk 0:00:03.9]} 53... Rb7 {[%clk
0:00:27.8]} 54. Ra6 {[%clk 0:00:04.2]} 54... Re7 {[%clk 0:00:26.2]} 55. Rh2
{[%clk 0:00:04.1]} 55... Re8 {[%clk 0:00:25.9]} 56. Rha2 {[%clk 0:00:03.9]}
56... h3 {[%clk 0:00:24.2]} 57. Ra7 {[%clk 0:00:04.2]} 57... Rxa7 {[%clk
0:00:08.6]} 58. Rxa7+ {[%clk 0:00:05.1]} 58... Kc8 {[%clk 0:00:08.9]} 59. Ra8+
{[%clk 0:00:05.1]} 59... Kd7 {[%clk 0:00:09.2]} 60. Rxe8 {[%clk 0:00:05.1]}
60... Kxe8 {[%clk 0:00:09.4]} 61. Bg1 {[%clk 0:00:06]} 61... Kd7 {[%clk
0:00:09.7]} 62. Ke4 {[%clk 0:00:05]} 62... Bh4 {[%clk 0:00:09.6]} 63. Kf3 {[%clk
0:00:04.6]} 63... Be1 {[%clk 0:00:06.4]} 64. Kg4 {[%clk 0:00:04.5]} 64... Bd2
{[%clk 0:00:06.9]} 65. f5 {[%clk 0:00:03.3]} 65... Bc3 {[%clk 0:00:05.7]} 66.
Kxh3 {[%clk 0:00:03.6]} 66... Bf6 {[%clk 0:00:06.2]} 67. Kg4 {[%clk 0:00:04]}
67... Kc7 {[%clk 0:00:06.7]} 68. Kf3 {[%clk 0:00:04.6]} 68... Kb7 {[%clk
0:00:06.8]} 69. Ke4 {[%clk 0:00:05.1]} 69... Be5 {[%clk 0:00:07]} 70. Bd4 {[%clk
0:00:05.3]} 70... Bxd4 {[%clk 0:00:06.1]} 71. Kxd4 {[%clk 0:00:06.2]} 71... Kb6
{[%clk 0:00:07]} 72. c5+ {[%clk 0:00:05]} 72... dxc5+ {[%clk 0:00:07.1]} 73. Kc4
{[%clk 0:00:05.5]} 73... Kb7 {[%clk 0:00:06]} 74. Kxc5 {[%clk 0:00:06]} 74...
Kc7 {[%clk 0:00:06.9]} 75. b6+ {[%clk 0:00:06.4]} 75... Kd7 {[%clk 0:00:07.8]}
76. d6 {[%clk 0:00:05.9]} 76... Kc8 {[%clk 0:00:08.2]} 77. Kc6 {[%clk
0:00:06.5]} 77... Kb8 {[%clk 0:00:08.7]} 78. d7 {[%clk 0:00:05.7]} 1-0